[Event "45th FIDE Olympiad 2024"]
[Site "Budapest"]
[Date "2024.09.19"]
[Round "8.19"]
[White "Bu, Xiangzhi"]
[Black "Lupulescu, Constantin"]
[Result "1/2-1/2"]
[ECO "D40"]
[WhiteElo "2693"]
[BlackElo "2590"]
[Annotator "TA"]
[PlyCount "133"]
[EventDate "2024.09.05"]
[EventType "team-tourn"]
[EventCountry "HUN"]
[SourceTitle "playchess.com"]
[Source "ChessBase"]
[SourceQuality "1"]
[WhiteTeam "China"]
[BlackTeam "Romania"]
[WhiteTeamCountry "CHN"]
[BlackTeamCountry "ROU"]
[TimeControl "40/5400+30:1800+30"]

{[%evp 17,133,27,0,0,19,25,27,20,29,26,29,33,21,19,20,20,26,20,38,34,42,35,35,43,34,25,27,0,0,0,3,0,0,0,0,0,0,0,0,0,0,0,0,0,0,0,27,30,20,19,21,18,21,23,29,8,8,0,0,0,0,0,68,69,98,98,98,98,98,83,107,104,70,36,79,73,95,95,98,98,98,0,0,0,0,0,0,0,0,0,0,0,0,0,0,0,0,0,0,0,0,0,0,0,0,0,0,0,0,0,0,0,0,0,0,0,0,0]} 1. Nf3 {[%emt 0:00:04]} c5 {[%emt 0:00:05]} 2. c4 {[%emt 0:00:11]} Nc6 {[%emt 0:00:47]} 3. Nc3 {[%emt 0:00:38]} Nf6 {[%emt 0:00:05]} 4. e3 {[%emt 0:02:46]} e6 {[%emt 0:01:32]} 5. d4 {[%emt 0:00:30]} d5 {[%emt 0:00:09]} 6. a3 {[%emt 0:04:14]} a6 {[%emt 0:04:19]} 7. dxc5 {[%emt 0:01:48]} Bxc5 {[%emt 0:00:35]} 8. b4 {[%emt 0:00:05]} Ba7 {[%emt 0:03:34]} 9. Bb2 {[%emt 0:01:17]} O-O {[%emt 0:04:13]} 10. h3 {[%emt 0:01:10]} Qe7 {[%emt 0:15:14]} 11. cxd5 {[%emt 0:09:55]} Rd8 {[%emt 0:01:37][%cal Re6d5]} 12. Bd3 {[%emt 0:00:13] White has an edge.} exd5 {[%emt 0:02:32]} 13. Ne2 {[%emt 0:04:47]} Ne4 {[%emt 0:02:43]} 14. O-O {[%emt 0:01:29]} Bf5 {[%emt 0:02:27][%cal Oe4f2]} 15. Ned4 {[%emt 0:12:28]} Nxd4 {[%emt 0:01:46]} 16. Nxd4 {[%emt 0:04:15]} Bg6 {[%emt 0:00:58]} 17. Rc1 {[%emt 0:01:29]} Nd6 {[%emt 0:04:05]} 18. Qb3 {[%emt 0:03:30]} Bxd4 {[%emt 0:11:05]} 19. Bxd4 {[%emt 0:00:26]} Bxd3 {[%emt 0:00:23]} 20. Qxd3 {[%emt 0:00:06]} Nc4 {[%emt 0:00:11]} 21. Rfe1 {[%emt 0:15:51]} b5 {[%emt 0:06:53]} 22. e4 {[%emt 0:01:06]} dxe4 {[%emt 0:10:54]} 23. Rxe4 {[%emt 0:00:18]} Qg5 {[%emt 0:00:39]} 24. Rce1 {[%emt 0:01:07]} h5 {[%emt 0:00:54] Against Rg4} 25. f4 {[%emt 0:10:28]} Qh6 {[%emt 0:06:00]} 26. f5 {[%emt 0:01:12]} Nd2 {[%emt 0:06:32]} 27. R4e2 {[%emt 0:12:32]} Nb3 {[%emt 0:00:10]} 28. Bxg7 {[%emt 0:01:12]} (28. Qxb3 {simplifies} Rxd4 29. Qe3 Qxe3+ 30. Rxe3 Rad8 31. Re8+) 28... Qb6+ {[%emt 0:02:43]} 29. Qe3 {[%emt 0:00:03]} Qxe3+ {[%emt 0:00:06]} 30. Rxe3 {[%emt 0:00:01]} Kxg7 {[%emt 0:00:07]} 31. f6+ {[%emt 0:00:03]} Kxf6 {[%emt 0:01:20]} 32. Rf1+ {[%emt 0:00:20]} Kg7 {[%emt 0:00:32]} 33. Rg3+ {[%emt 0:00:04]} Kf8 {[%emt 0:00:44]} 34. Rxb3 $11 {[%emt 0:00:04][%mdl 4096] Endgame. KRR-KRR} Rd5 {[%emt 0:04:31] Prevents Rf5} 35. Rbf3 {[%emt 0:01:44]} Ra7 {[%emt 0:00:06]} 36. Rf5 {[%emt 0:00:24]} Rd3 {[%emt 0:02:02]} 37. R1f3 {[%emt 0:08:27]} Rxf3 {[%emt 0:00:24]} 38. Rxf3 {[%emt 0:00:10][%cal Bf5f3,Bf3c3,Bc3c6,Bc6a6,Ba6a5,Ba5b5][%mdl 32] KR-KR} Kg7 {[%emt 0:01:06]} 39. Rc3 {[%emt 0:00:36]} Rd7 {[%emt 0:02:35]} ({Black should try} 39... Kg6 $11) 40. Rc6 $14 {[%emt 0:00:30]} Rd3 {[%emt 0:02:43]} 41. Rxa6 {[%emt 0:30:06]} f6 {[%emt 0:09:35]} 42. Ra5 {[%emt 0:00:00]} Kg6 {[%emt 0:00:17]} 43. h4 {[%emt 0:00:00]} Rc3 {[%emt 0:09:17]} 44. Kf2 {[%emt 0:00:00]} (44. Rxb5 Rxa3 45. Kf2 Rc3) 44... Rb3 {[%emt 0:00:09]} 45. Rxb5 {[%emt 0:00:00] aiming for a4.} Rxa3 {[%emt 0:00:05]} 46. Rd5 {[%emt 0:00:00]} Ra4 {[%emt 0:02:51] [#]} 47. Rd4 $1 {[%emt 0:00:00] White is more active.} Ra2+ {[%emt 0:01:31]} 48. Kf3 {[%emt 0:00:01] Hoping for b5.} Rb2 {[%emt 0:00:59]} 49. Ke4 {[%emt 0:04:16]} (49. g3 $16) 49... Rxg2 $11 {[%emt 0:00:40] The position is equal.} 50. Kd5 {[%emt 0:00:13]} Kf5 {[%emt 0:08:26]} 51. b5 {[%emt 0:00:03] [#] Black must now prevent b6.} Rb2 {[%emt 0:00:26]} 52. Kc6 {[%emt 0:01:58] Strongly threatening b6.} Rc2+ {[%emt 0:00:56]} 53. Kd6 {[%emt 0:00:59]} Rb2 {[%emt 0:00:20]} 54. Kc5 {[%emt 0:01:43]} Ke5 {[%emt 0:01:01][%cal Ob2b5]} 55. Rd5+ {[%emt 0:00:15]} Ke4 $1 {[%emt 0:00:52][%cal Ob2b5] ( -> ...Rxb5+!)} 56. Rxh5 {[%emt 0:00:04]} f5 {[%emt 0:00:08][%cal Bf6f5,Bf5f4,Bf4f3][%mdl 32]} 57. Rh8 {[%emt 0:00:16]} Rc2+ {[%emt 0:00:26]} 58. Kb4 {[%emt 0:00:35] And now h5 would win.} Rb2+ {[%emt 0:00:14]} 59. Kc4 {[%emt 0:00:47] h5 is the strong threat.} f4 {[%emt 0:00:18]} 60. h5 {[%emt 0:00:05] h6 would now be deadly.} f3 {[%emt 0:00:55]} 61. h6 {[%emt 0:00:27]} Rc2+ $1 {[%emt 0:00:26]} 62. Kb4 {[%emt 0:00:48] White threatens h7 and mate.} Rh2 {[%emt 0:00:36]} 63. Re8+ {[%emt 0:01:12]} Kd3 {[%emt 0:00:52]} 64. Rf8 {[%emt 0:00:27]} Ke2 {[%emt 0:01:05]} 65. Re8+ {[%emt 0:00:27]} Kd3 {[%emt 0:00:14]} 66. Rf8 {[%emt 0:00:23]} Ke2 {[%emt 0:00:06]} 67. Re8+ {[%emt 0:00:36] Weighted Error Value: White=0.05 (flawless) /Black=0.05 (flawless) .  Mistake:       	White=1     	Black=1      Inaccurate:     	White=1     	Black=2      OK:         	White=19    	Black=32     Best:        	White=3     	Black=7      Strong:       	White=1     	Black=2} 1/2-1/2

[Event "45th FIDE Olympiad 2024"]
[Site "Budapest"]
[Date "2024.09.19"]
[Round "8.19"]
[White "Pedro, Manuel Envo Engonga "]
[Black "Heron, Andrew"]
[Result "0-1"]
[WhiteElo "1702"]
[BlackElo "2026"]
[PlyCount "124"]
[EventDate "2024.09.05"]
[EventType "team-tourn"]
[EventCountry "HUN"]
[WhiteTeam "Equatorial Guinea"]
[BlackTeam "Liechtenstein"]
[BlackTeamCountry "LIE"]
[TimeControl "40/5400+30:1800+30"]

1. e4 c5 2. Nf3 d6 3. d4 cxd4 4. Nxd4 Nf6 5. Nc3 a6 6. Rg1 e5 7. Nb3 Be6 8. g4 d5 9. g5 Nxe4 10. Nxe4 dxe4 11. Qxd8+ Kxd8 12. Be3 Kc7 13. O-O-O Nc6 14. Rg3 Bd6 15. Bc5 Rad8 16. Bxd6+ Rxd6 17. Rxd6 Kxd6 18. Re3 h6 19. g6 f5 20. h4 h5 21. c3 Rh6 22. Rg3 Ne7 23. Be2 Bxb3 24. axb3 Nd5 25. Rg5 Nf4 26. Kd2 Ke6 27. b4 Rxg6 28. Rxg6+ Nxg6 29. Bxh5 Nxh4 30. Ke3 g6 31. Be2 Ng2+ 32. Kd2 Nf4 33. Bf1 g5 34. b5 axb5 35. Bxb5 Nd5 36. Be2 f4 37. Bg4+ Kd6 38. c4 Nb4 39. Bf5 Nd3 40. Bxe4 Nxb2 41. Bxb7 Nxc4+ 42. Kd3 Na5 43. Bf3 Nb3 44. Ba8 Nc5+ 45. Kc4 Nd7 46. Be4 Nf6 47. Ba8 Ng4 48. f3 Ne3+ 49. Kd3 g4 50. fxg4 Nxg4 51. Ke4 Ke6 52. Bd5+ Kf6 53. Kf3 Kg5 54. Bb7 Nf6 55. Bc8 e4+ 56. Kg2 f3+ 57. Kf2 Kf4 58. Ba6 Ng4+ 59. Kf1 Ke3 60. Kg1 Kd2 61. Bc8 Ne5 62. Kf1 e3 {0-} 0-1

[Event "45th FIDE Olympiad 2024"]
[Site "Budapest"]
[Date "2024.09.19"]
[Round "8.20"]
[White "Parligras, Mircea-Emilian"]
[Black "Wang, Yue"]
[Result "1/2-1/2"]
[ECO "D38"]
[WhiteElo "2537"]
[BlackElo "2637"]
[Annotator "RC"]
[PlyCount "67"]
[EventDate "2024.09.05"]
[EventType "team-tourn"]
[EventCountry "HUN"]
[SourceTitle "playchess.com"]
[Source "ChessBase"]
[SourceQuality "1"]
[WhiteTeam "Romania"]
[BlackTeam "China"]
[WhiteTeamCountry "ROU"]
[BlackTeamCountry "CHN"]
[TimeControl "40/5400+30:1800+30"]

1. d4 {[%emt 0:00:04]} Nf6 {[%emt 0:00:13]} 2. c4 {[%emt 0:00:14]} e6 {[%emt 0:00:07]} 3. Nf3 {[%emt 0:00:13]} d5 {[%emt 0:00:06]} 4. Nc3 {[%emt 0:00:16]} Bb4 {[%emt 0:00:25]} 5. Bg5 {[%emt 0:00:46]} h6 {[%emt 0:00:22]} 6. Bxf6 {[%emt 0:00:16]} Qxf6 {[%emt 0:00:05]} 7. e3 {[%emt 0:00:09]} O-O {[%emt 0:00:26]} 8. Rc1 {[%emt 0:00:34]} Nc6 {[%emt 0:01:13]} 9. Be2 {[%emt 0:01:11]} dxc4 {[%emt 0:01:36]} 10. Bxc4 {[%emt 0:00:28]} Bxc3+ {[%emt 0:00:39]} 11. bxc3 {[%emt 0:00:50]} b6 {[%emt 0:05:46]} 12. O-O {[%emt 0:00:11]} Bb7 {[%emt 0:00:39]} 13. Bd3 {[%emt 0:00:51]} Rfd8 {[%emt 0:05:01]} 14. Qe2 {[%emt 0:11:21]} Qe7 {[%emt 0:07:13]} 15. Bb1 {[%emt 0:14:28]} Na5 {[%emt 0:05:04]} 16. Ne5 {[%emt 0:01:42]} c5 {[%emt 0:00:40]} 17. Qc2 {[%emt 0:07:17]} f5 {[%emt 0:09:03]} 18. Qe2 {[%emt 0:02:45]} Rac8 {[%emt 0:02:16]} 19. Rcd1 {[%emt 0:09:08]} cxd4 {[%emt 0:08:42]} 20. cxd4 {[%emt 0:00:17]} Nc6 {[%emt 0:00:09]} 21. Nxc6 {[%emt 0:03:54]} Bxc6 {[%emt 0:00:13]} 22. Rfe1 {[%emt 0:04:03]} Qb4 {[%emt 0:09:52]} 23. e4 {[%emt 0:09:54]} fxe4 {[%emt 0:02:45]} 24. Bxe4 {[%emt 0:00:05]} Bxe4 {[%emt 0:09:42]} 25. Qxe4 {[%emt 0:00:05]} Qc4 {[%emt 0:00:06]} 26. a3 {[%emt 0:07:23]} Qd5 {[%emt 0:01:39]} 27. Qg4 {[%emt 0:07:24]} Qf5 {[%emt 0:04:25]} 28. Qg3 {[%emt 0:00:40]} Rc4 {[%emt 0:09:42]} 29. h3 {[%emt 0:00:28]} Qf6 {[%emt 0:02:07]} 30. Re4 {[%emt 0:02:07]} Rcxd4 {[%emt 0:04:02]} 31. Rexd4 {[%emt 0:00:22]} Rxd4 {[%emt 0:00:07]} 32. Qb8+ {[%emt 0:00:16]} Kh7 {[%emt 0:00:08]} 33. Rxd4 {[%emt 0:00:04]} Qxd4 {[%emt 0:00:05]} 34. Qxa7 {[%emt 0:00:08]} 1/2-1/2

[Event "45th FIDE Olympiad 2024"]
[Site "Budapest"]
[Date "2024.09.19"]
[Round "8.21"]
[White "Le, Quang Liem"]
[Black "Carlsen, Magnus"]
[Result "0-1"]
[ECO "D63"]
[WhiteElo "2741"]
[BlackElo "2832"]
[Annotator "TA"]
[PlyCount "90"]
[EventDate "2024.09.05"]
[EventType "team-tourn"]
[EventCountry "HUN"]
[SourceTitle "playchess.com"]
[Source "ChessBase"]
[SourceQuality "1"]
[WhiteTeam "Vietnam"]
[BlackTeam "Norway"]
[WhiteTeamCountry "VIE"]
[BlackTeamCountry "NOR"]
[TimeControl "40/5400+30:1800+30"]

{[%evp 17,90,12,20,12,18,19,4,0,0,0,0,0,0,0,0,0,0,-12,-42,-52,-38,-40,-18,-35,-19,-72,-70,-67,-73,-62,-62,-62,-66,-72,-74,-111,-94,-90,-41,-300,-268,-289,-292,-286,-247,-260,-257,-301,-267,-312,-291,-297,-318,-397,-418,-534,-523,-567,-531,-591,-609,-584,-554,-875,-879,-771,-940,-774,-762,-750,-730,-727,-736,-1183,-1173]} 1. d4 {[%emt 0:00:04]} Nf6 {[%emt 0:01:44]} 2. c4 {[%emt 0:00:16]} e6 {[%emt 0:00:18]} 3. Nf3 {[%emt 0:00:10]} d5 {[%emt 0:00:26]} 4. Nc3 {[%emt 0:00:11]} c6 {[%emt 0:02:59]} 5. Bg5 {[%emt 0:00:16]} Nbd7 {[%emt 0:00:57]} 6. e3 {[%emt 0:00:12]} h6 {[%emt 0:00:26]} 7. Bh4 {[%emt 0:00:09]} Be7 {[%emt 0:01:43]} 8. Rc1 {[%emt 0:01:55]} O-O {[%emt 0:03:02]} 9. a3 {[%emt 0:04:39]} a6 {[%emt 0:06:22]} 10. cxd5 {[%emt 0:04:49]} exd5 {[%emt 0:00:55]} 11. Qc2 {[%emt 0:07:14]} Ne8 {[%emt 0:10:13]} 12. Bg3 {[%emt 0:02:20] The position is equal.} Bd6 {[%emt 0:04:26]} 13. Bd3 {[%emt 0:00:22]} Bxg3 {[%emt 0:00:22]} 14. hxg3 {[%emt 0:00:08]} Ndf6 {[%emt 0:00:09] Against g4} 15. Ne5 {[%emt 0:03:46]} Nd6 {[%emt 0:01:12]} 16. f3 {[%emt 0:05:31]} Re8 {[%emt 0:03:42]} 17. Ne2 {[%emt 0:00:30]} Nd7 {[%emt 0:01:28]} 18. Rh5 {[%emt 0:02:17]} f6 $1 {[%emt 0:12:44]} 19. Nxd7 {[%emt 0:17:12]} Bxd7 {[%emt 0:00:02]} 20. Kf2 {[%emt 0:00:55]} f5 {[%emt 0:01:24]} 21. Re1 {[%emt 0:05:41] [#]} (21. Nf4 $11) 21... Rxe3 $1 {[%emt 0:07:38]} 22. Kxe3 {[%emt 0:04:52]} Qe8+ {[%emt 0:00:02]} 23. Kf2 {[%emt 0:00:13]} Qxh5 {[%emt 0:00:04]} 24. Qc5 {[%emt 0:00:09]} Qg6 {[%emt 0:00:13]} 25. Qb6 {[%emt 0:01:09]} Qf6 {[%emt 0:06:11]} 26. Qc7 {[%emt 0:00:16]} Be8 {[%emt 0:06:27]} 27. Nf4 {[%emt 0:04:39]} Rc8 {[%emt 0:01:34]} (27... Qxd4+ $6 28. Kf1 g5 29. Qxd6 gxf4 30. Bxf5 fxg3 31. Qxg3+ Qg7 32. Qh4 $11) ({Better is} 27... Bf7 $17 28. Re5 a5) 28. Qxc8 $4 {[%emt 0:03:28][%mdl 8192] White does not recover from this.} Nxc8 $19 {[%emt 0:07:22]} (28... Qxd4+ 29. Kf1 Nxc8 30. Rxe8+ Kf7 31. Rxc8 $19) 29. Rxe8+ {[%emt 0:00:08]} Kf7 {[%emt 0:00:10]} 30. Rxc8 {[%emt 0:00:08] Hoping for Ne2.} Qxd4+ {[%emt 0:00:11]} 31. Kf1 {[%emt 0:00:16]} g5 {[%emt 0:01:35]} 32. Rf8+ {[%emt 0:00:54]} Ke7 $1 {[%emt 0:00:02][%cal Og5f4]} (32... Kxf8 $2 {too greedy.} 33. Ne6+ Kf7 34. Nxd4 $18) 33. Ng6+ {[%emt 0:00:11]} Kd6 {[%emt 0:00:01]} 34. Bxf5 {[%emt 0:00:13]} Qxb2 {[%emt 0:00:08]} 35. f4 {[%emt 0:02:51]} Qxa3 {[%emt 0:00:19]} 36. Kf2 {[%emt 0:00:50]} a5 {[%emt 0:01:17] Black is clearly winning.} 37. Ne5 {[%emt 0:01:02]} a4 {[%emt 0:06:32]} 38. Rf7 {[%emt 0:04:27]} Qb2+ {[%emt 0:00:49]} 39. Kf1 {[%emt 0:02:34] aiming for Rd7+.} Qb5+ {[%emt 0:03:39]} 40. Bd3 {[%emt 0:01:32]} Qb3 {[%emt 0:00:33] And now ...a3 would win.} 41. Bf5 {[%emt 0:43:46]} a3 {[%emt 0:30:57]} 42. Nd3 {[%emt 0:00:23] [#]} Qxd3+ $3 {[%emt 0:00:45][%mdl 512]} 43. Bxd3 {[%emt 0:00:08]} a2 {[%emt 0:00:03]} 44. Rxb7 {[%emt 0:00:52]} a1=Q+ {[%emt 0:00:08]} (44... a1=B $2 {loses.} 45. Rh7 $18) 45. Ke2 {[%emt 0:00:23]} Qg1 {[%emt 0:00:17] Weighted Error Value: White=0.50/Black=0.05 (flawless) .  Loses game:     	White=1     	---        Mistake:       	White=1     	Black=1      Inaccurate:     	White=1     	---        OK:         	White=11    	Black=13     Best:        	White=2     	Black=8      Strong:       	---       	Black=2} 0-1

[Event "45th FIDE Olympiad 2024"]
[Site "Budapest"]
[Date "2024.09.19"]
[Round "8.21"]
[White "Andrade, Ivan"]
[Black "Stratonowitsch, Andre"]
[Result "0-1"]
[WhiteElo "2132"]
[BlackElo "2154"]
[PlyCount "88"]
[EventDate "2024.09.05"]
[EventType "team-tourn"]
[EventCountry "HUN"]
[WhiteTeam "Mozambique"]
[BlackTeam "Seychelles"]
[WhiteTeamCountry "MOZ"]
[BlackTeamCountry "SEY"]
[TimeControl "40/5400+30:1800+30"]

1. e4 c5 2. Nf3 e6 3. d4 cxd4 4. Nxd4 Nc6 5. Nc3 Qc7 6. Be3 a6 7. Qf3 Nf6 8. O-O-O Be7 9. h3 Rb8 10. g4 h6 11. Kb1 b5 12. Nxc6 Qxc6 13. Bd3 Bb7 14. Qg3 d6 15. f3 Rc8 16. Rhe1 Nd7 17. Qf2 Ne5 18. Qe2 Kf8 19. a3 Bf6 20. Na2 Qc7 21. f4 Nd7 22. Qf2 Nc5 23. Bd4 Qe7 24. Re2 e5 25. Bxc5 dxc5 26. fxe5 Qxe5 27. c4 Rd8 28. Nc3 bxc4 29. Bxc4 Rxd1+ 30. Nxd1 Qd4 31. Qxd4 Bxd4 32. Bd5 Bc8 33. b4 h5 34. g5 Bxh3 35. Nf2 Be6 36. bxc5 h4 37. Bxe6 fxe6 38. Rd2 e5 39. Nh3 Ke7 40. c6 Rc8 41. Rg2 Rxc6 42. Rg4 Rc3 43. Rxh4 Rxa3 44. Rh8 Kf7 {0-} 0-1

[Event "45th FIDE Olympiad 2024"]
[Site "Budapest"]
[Date "2024.09.19"]
[Round "8.22"]
[White "Christiansen, Johan-Sebastian"]
[Black "Nguyen, Ngoc Truong Son"]
[Result "1/2-1/2"]
[ECO "C60"]
[WhiteElo "2661"]
[BlackElo "2633"]
[Annotator "TA"]
[PlyCount "110"]
[EventDate "2024.09.05"]
[EventType "team-tourn"]
[EventCountry "HUN"]
[SourceTitle "playchess.com"]
[Source "ChessBase"]
[SourceQuality "1"]
[WhiteTeam "Norway"]
[BlackTeam "Vietnam"]
[WhiteTeamCountry "NOR"]
[BlackTeamCountry "VIE"]
[TimeControl "40/5400+30:1800+30"]

{[%evp 9,110,45,45,-6,-18,-18,-22,-23,-18,-17,-16,-16,-8,-21,-8,-10,-2,-39,-37,-22,-30,-34,-21,-13,0,0,-2,-11,-7,-4,-1,-8,0,0,0,-1,-6,-5,0,-3,-8,-4,0,-12,0,-9,-9,-6,-5,-9,0,0,0,0,0,0,0,-10,0,-8,-10,-8,-1,-2,0,0,0,-13,-8,-11,-6,-16,-12,-22,-20,-29,-29,-33,0,0,0,0,0,0,0,0,0,0,0,0,0,0,0,0,0,0,0,0,0,0,0,0,0]} 1. e4 {[%emt 0:00:06]} e5 {[%emt 0:00:41]} 2. Nf3 {[%emt 0:00:16]} Nc6 {[%emt 0:00:23]} 3. Bb5 {[%emt 0:00:27]} Nge7 {[%emt 0:01:31]} 4. c3 {[%emt 0:08:06]} d5 {[%emt 0:07:34][%cal Bd7d5,Bd5e4,Be4d3][%mdl 32]} 5. Nxe5 {[%emt 0:08:15]} dxe4 {[%emt 0:00:42]} 6. d4 {[%emt 0:06:57]} (6. Qe2 $14) 6... exd3 $11 {[%emt 0:01:34]} 7. Qf3 {[%emt 0:09:08]} (7. Nxc6 {simplifies} Nxc6 8. Bxd3 Bg4 9. Qc2) 7... Be6 {[%emt 0:03:47]} 8. O-O {[%emt 0:15:13][%cal Oc3c4]} Qd5 {[%emt 0:02:19]} 9. Qxd5 {[%emt 0:00:46]} Bxd5 {[%emt 0:00:15]} 10. Nxc6 {[%emt 0:05:52]} Bxc6 {[%emt 0:06:46]} (10... Nxc6 {with more complications.} 11. Re1+ Be7 12. Bf4 a6) 11. Bxd3 {[%emt 0:00:12]} O-O-O {[%emt 0:00:19]} 12. Bc4 {[%emt 0:02:42]} Nd5 {[%emt 0:02:03][%cal Be7d5,Bd5b4,Bb4c6,Bc6e5,Be5f3][%mdl 32]} 13. Be2 {[%emt 0:11:49]} Bd6 {[%emt 0:20:43]} 14. Bf3 {[%emt 0:01:34]} Rhe8 {[%emt 0:01:09]} 15. Nd2 {[%emt 0:05:27]} Bf8 {[%emt 0:10:47]} 16. g3 {[%emt 0:08:28]} f5 {[%emt 0:05:51]} 17. Nb3 {[%emt 0:01:59]} Nb4 {[%emt 0:06:04]} 18. Bxc6 {[%emt 0:02:25]} Nxc6 {[%emt 0:00:04]} 19. Bg5 {[%emt 0:00:42]} Be7 {[%emt 0:01:56]} 20. Bxe7 {[%emt 0:00:05]} Rxe7 {[%emt 0:00:05]} 21. Rfe1 {[%emt 0:00:21]} Ne5 {[%emt 0:02:12] [#] Hoping for ...Nf3+.} 22. Kf1 {[%emt 0:04:24]} Rde8 {[%emt 0:02:19]} 23. Nd4 {[%emt 0:02:00]} g6 {[%emt 0:00:09]} 24. Rad1 {[%emt 0:00:51]} a6 {[%emt 0:01:14]} 25. Nc2 {[%emt 0:01:02]} Nf3 {[%emt 0:01:31]} 26. Rxe7 {[%emt 0:00:04]} Rxe7 {[%emt 0:00:07][%mdl 4096] Endgame. KRN-KRN} 27. h3 {[%emt 0:02:06]} Ng5 {[%emt 0:00:35]} 28. h4 {[%emt 0:00:33]} Ne4 {[%emt 0:00:10]} 29. Kg2 {[%emt 0:00:28]} Re6 {[%emt 0:06:56] ...Rb6 is the strong threat.} 30. Ne3 {[%emt 0:00:29]} Nf6 {[%emt 0:00:35]} 31. Kf3 {[%emt 0:00:21]} c6 {[%emt 0:00:20]} 32. Rd2 {[%emt 0:00:55]} Kc7 {[%emt 0:00:20]} 33. Nc2 {[%emt 0:01:14]} Ng4 {[%emt 0:01:06]} 34. Ne3 {[%emt 0:00:51]} Ne5+ {[%emt 0:04:32]} 35. Kg2 {[%emt 0:00:03]} b5 {[%emt 0:01:35]} 36. h5 {[%emt 0:00:48]} a5 {[%emt 0:00:14]} 37. hxg6 {[%emt 0:00:01]} hxg6 {[%emt 0:00:04]} 38. Kf1 {[%emt 0:01:11]} Nf3 {[%emt 0:03:55]} 39. Rd3 {[%emt 0:00:05]} Ng5 {[%emt 0:01:37]} 40. Ng2 {[%emt 0:00:35]} Ne4 {[%emt 0:00:25]} 41. Ne3 {[%emt 0:06:04]} a4 {[%emt 0:03:50]} 42. a3 {[%emt 0:01:54]} Nd6 {[%emt 0:10:50]} 43. Rd4 {[%emt 0:02:37]} c5 {[%emt 0:03:21]} 44. Rh4 {[%emt 0:00:23] The position is equal.} Kc6 {[%emt 0:00:27]} 45. Rh8 {[%emt 0:02:05]} Ne4 {[%emt 0:02:08][%cal Oe4g3]} 46. Ke2 {[%emt 0:04:46]} Rd6 {[%emt 0:00:11] [#] White must now prevent ...Rd2+.} 47. Ke1 {[%emt 0:00:07]} Re6 {[%emt 0:04:05][%cal Oe4g3]} 48. Ke2 {[%emt 0:00:36]} Rd6 {[%emt 0:03:41] And now ...Rd2+ would win.} 49. Ke1 {[%emt 0:00:11]} Nd2 {[%emt 0:02:29]} 50. Rc8+ {[%emt 0:02:09]} Kb6 {[%emt 0:00:21]} 51. Rb8+ {[%emt 0:00:55]} Ka6 {[%emt 0:00:51]} 52. Rh8 {[%emt 0:04:22]} Kb7 {[%emt 0:00:53]} 53. Rh6 {[%emt 0:02:24]} Ne4 {[%emt 0:00:59]} 54. Rh7+ {[%emt 0:00:28]} Kc6 {[%emt 0:01:19]} 55. Rh8 {[%emt 0:00:31]} Re6 {[%emt 0:03:04] Weighted Error Value: White=0.04 (flawless) /Black=0.02 (flawless) .  Inaccurate:     	White=1     	Black=1      OK:         	White=23    	Black=20     Best:        	White=2     	Black=1} 1/2-1/2

[Event "45th FIDE Olympiad 2024"]
[Site "Budapest"]
[Date "2024.09.19"]
[Round "8.22"]
[White "Meier, Peter"]
[Black "Jamal, Hamid Harmon Gulamo"]
[Result "0-1"]
[WhiteElo "2062"]
[BlackElo "1960"]
[PlyCount "96"]
[EventDate "2024.09.05"]
[EventType "team-tourn"]
[EventCountry "HUN"]
[WhiteTeam "Seychelles"]
[BlackTeam "Mozambique"]
[WhiteTeamCountry "SEY"]
[BlackTeamCountry "MOZ"]
[TimeControl "40/5400+30:1800+30"]

1. d4 Nf6 2. Nf3 g6 3. g3 Bg7 4. Bg2 O-O 5. O-O d6 6. c4 c6 7. Nc3 Bf5 8. Ne1 Qc8 9. e4 Be6 10. b3 Bh3 11. Bb2 Qe6 12. Nd3 Bxg2 13. Nf4 Qc8 14. Kxg2 Nbd7 15. Re1 Qc7 16. Nd3 Rad8 17. Qe2 e5 18. dxe5 dxe5 19. Rad1 h6 20. h3 Nh7 21. Ba3 Rfe8 22. b4 Ng5 23. c5 Ne6 24. Qb2 Ndf8 25. Ne2 Rd7 26. Qb3 Red8 27. Nb2 b5 28. cxb6 axb6 29. Nc4 Nd4 30. Nxd4 exd4 31. Rd3 Ne6 32. f4 h5 33. Bc1 b5 34. Na3 c5 35. Nxb5 Qb7 36. a4 cxb4 37. Qxb4 Bf8 38. Qb2 Nc5 39. Rxd4 Nd3 40. Rxd3 Rxd3 41. Re2 Bg7 42. Qc2 h4 43. Re3 Rd1 44. Nc3 Bxc3 45. Rxc3 R1d3 46. Qxd3 Rxd3 47. Rxd3 Qxe4+ 48. Rf3 Qc2+ {0-} 0-1